[Event "Azerbaijan-ch 1st League 2025"]
[Site "Baku"]
[Date "2025.01.07"]
[Round "2.16"]
[White "Huseynov, Ahmed"]
[Black "Azimov, Yasin"]
[Result "1-0"]
[Annotator "TA"]
[ECO "D02"]
[WhiteElo "1996"]
[BlackElo "1880"]
[PlyCount "61"]
[EventDate "2025.01.05"]
[EventType "swiss"]
[EventCountry "AZE"]
[SourceTitle "playchess.com"]
[Source "ChessBase"]
[SourceQuality "1"]
[TimeControl "40/5400+30:1800+30"]

{[%evp 9,61,0,-4,0,0,-29,-29,-31,-30,-26,-34,-16,0,-7,0,0,12,-48,-35,-160,54,64,86,89,87,78,105,95,137,137,136,127,180,132,145,26,17,10,29,-11,20,0,15,0,35,45,43,43,44,46,675,668,645,635]} 1. d4 {[%emt 0:00:04]} Nf6 {[%emt 0:00:15]} 2. Bg5 {[%emt 0:00:11]} d5 {[%emt 0:00:12]} 3. c3 {[%emt 0:00:34]} c5 {[%emt 0:04:38]} 4. e3 {[%emt 0:00:31]} Nc6 {[%emt 0:00:50]} 5. Nf3 {[%emt 0:05:28]} Qb6 {[%emt 0:01:43]} 6. Qb3 {[%emt 0:15:37]} c4 {[%emt 0:02:08]} 7. Qc2 {[%emt 0:01:16] [#]} Bf5 $1 {[%emt 0:06:05]} 8. Qc1 {[%emt 0:00:07] Black has an edge.} (8. Qxf5 $2 Qxb2 9. Bxf6 e6 $19 (9... Qxa1 10. Bxc4 Qb2 11. Bxd5 $16) (9... gxf6 10. Bxc4 Qc1+ 11. Ke2 $11) (9... exf6 10. Qxd5 Qxa1 11. Qe4+ Be7 12. Bxc4 $11)) 8... Ne4 {[%emt 0:04:08]} 9. Bf4 {[%emt 0:00:15]} f6 {[%emt 0:04:37] ...g5 is the strong threat.} 10. h4 {[%emt 0:08:19]} e6 {[%emt 0:15:36]} 11. Nbd2 {[%emt 0:01:17]} Nxd2 {[%emt 0:05:16]} 12. Nxd2 {[%emt 0:09:49][%cal Oe3e4]} e5 {[%emt 0:09:40] [#]} 13. e4 {[%emt 0:06:25]} Bxe4 $15 {[%emt 0:05:32]} (13... dxe4 14. Nxc4 Qc7 15. dxe5 Nxe5 (15... fxe5 16. Bg3 $16) 16. Bxe5 (16. Nxe5 Bd6 $16) 16... fxe5 17. Qg5 $16) 14. dxe5 {[%emt 0:02:49] [#]} ({Only move:} 14. Nxe4 $15 exf4 15. Nd2) 14... fxe5 $2 {[%emt 0:02:24]} (14... Bf5 $1 $17 {Threatens to win with ...Bc5.} 15. Be2 Bc5 (15... Nxe5 16. O-O $17) (15... fxe5 $2 16. Bg3 $17)) 15. Be3 $14 {[%emt 0:00:51]} Bc5 {[%emt 0:01:25]} 16. Nxe4 {[%emt 0:02:35]} dxe4 {[%emt 0:00:17]} 17. Bxc4 {[%emt 0:01:49]} Bxe3 {[%emt 0:02:39]} 18. Qxe3 {[%emt 0:00:20]} Qxb2 {[%emt 0:03:22]} 19. Rd1 {[%emt 0:02:20][%cal Oe3h3] Strongly threatening Qh3!} Rd8 {[%emt 0:05:45]} 20. O-O {[%emt 0:00:27][%mdl 1024] And now Rb1 would win. White has strong compensation.} (20. Qxe4 $2 Qxc3+ 21. Ke2 Rd4 $19 (21... Nd4+ $2 22. Rxd4 Qb2+ 23. Ke3 $19) (21... Nd4+ $2 22. Rxd4 Qb2+ 23. Ke3 $19)) 20... Rf8 {[%emt 0:02:36]} (20... Rxd1 $16 21. Rxd1 Rf8) 21. Rb1 {[%emt 0:12:36]} (21. Qxe4 $2 Rxd1 22. Qe3 (22. Rxd1 $2 Qxf2+ 23. Kh1 Rf4 $19) 22... Rxf1+ 23. Bxf1 Qxa2 $19) (21. Rxd8+ $18 Kxd8 22. Bd5 (22. Qxe4 Qxc3 23. Be6 Qd4 $16)) 21... Qd2 $16 {[%emt 0:01:46]} 22. Qg3 {[%emt 0:12:34]} (22. Qxd2 $16 Rxd2 23. Rxb7) 22... Rd7 $1 $11 {[%emt 0:01:42]} 23. Be6 {[%emt 0:01:37]} Re7 {[%emt 0:00:51]} 24. Bc8 {[%emt 0:00:25][%cal Be6c8,Bc8a6,Ba6c4,Bc4d5][%mdl 32]} b6 {[%emt 0:01:13]} 25. Ba6 $36 {[%emt 0:00:23][%mdl 2048] White has good play.} Qf4 {[%emt 0:01:12]} 26. Qh3 {[%emt 0:00:12] Black must now prevent Qc8+.} Rf6 {[%emt 0:01:43]} 27. Qc8+ {[%emt 0:01:05]} Kf7 {[%emt 0:00:08][%cal Of4f5]} 28. Bc4+ {[%emt 0:01:29]} Kg6 {[%emt 0:00:11][%cal Oe4e3] aiming for ...e3!} 29. Bd5 {[%emt 0:00:20]} e3 $2 {[%emt 0:03:53][%mdl 8192]} 30. fxe3 $18 {[%emt 0:01:33]} (30. Bxc6 $2 {perishes.} exf2+ (30... Qxh4 $2 {loses.} 31. fxe3 a5 32. Rxf6+ Qxf6 33. Be4+ Kg5 34. Qh3 $18) 31. Kh1 Qxh4+ 32. Qh3 Qxh3+ 33. gxh3 Rxc6 $19) 30... Qxe3+ {[%emt 0:00:11]} 31. Kh2 {[%emt 0:12:42] Weighted Error Value: White=0.25 (precise) /Black=0.40.  Loses game:     	---       	Black=1      Mistake:       	White=4     	Black=2      Inaccurate:     	White=2     	Black=4      OK:         	White=11    	Black=5      Best:        	White=3     	Black=4      Strong:       	---       	Black=1} 1-0

[Event "Azerbaijan-ch 1st League 2025"]
[Site "Baku"]
[Date "2025.01.07"]
[Round "2.17"]
[White "Kazimzade, Mahammad"]
[Black "Halafov, Ilgar"]
[Result "1/2-1/2"]
[Annotator "TA"]
[ECO "E64"]
[WhiteElo "1743"]
[BlackElo "1990"]
[PlyCount "81"]
[EventDate "2025.01.05"]
[EventType "swiss"]
[EventCountry "AZE"]
[SourceTitle "playchess.com"]
[Source "ChessBase"]
[SourceQuality "1"]
[TimeControl "40/5400+30:1800+30"]

{[%evp 19,81,51,40,0,-6,-17,-22,-69,-36,-68,-50,-77,-70,-157,-168,-160,-150,-190,-112,-116,-97,-114,-96,-122,-129,-139,-87,-117,-88,-144,-114,-155,-125,-184,-74,-81,-66,-133,-66,-173,-43,-34,-34,-37,-20,-39,-17,-23,0,0,0,-128,0,-104,-105,-117,-119,-92,-124,-130,-105,-131,-74,-116]} 1. d4 {[%emt 0:00:02]} c5 {[%emt 0:00:10]} 2. d5 {[%emt 0:00:10]} d6 {[%emt 0:00:16]} 3. Nf3 {[%emt 0:00:59]} Nf6 {[%emt 0:00:09]} 4. c4 {[%emt 0:01:12]} g6 {[%emt 0:00:09]} 5. Nc3 {[%emt 0:00:47]} Bg7 {[%emt 0:00:11]} 6. g3 {[%emt 0:00:19]} O-O {[%emt 0:00:23]} 7. Bg2 {[%emt 0:00:17]} Na6 {[%emt 0:03:44]} 8. O-O {[%emt 0:01:13]} Nc7 {[%emt 0:00:14]} 9. e4 {[%emt 0:03:02]} a6 {[%emt 0:00:57]} 10. a4 {[%emt 0:00:53]} Rb8 {[%emt 0:00:17]} 11. Qe2 {[%emt 0:04:31]} (11. a5 $14 {was preferable.}) 11... b5 $11 {[%emt 0:04:07]} 12. axb5 {[%emt 0:22:37]} axb5 {[%emt 0:00:18]} 13. Nd2 {[%emt 0:10:32]} (13. cxb5 $11 Bd7 14. Bd2) 13... bxc4 $15 {[%emt 0:03:27]} 14. Qxc4 {[%emt 0:00:20]} Bd7 {[%emt 0:05:23]} 15. Re1 {[%emt 0:03:17]} Ng4 {[%emt 0:01:39]} 16. h3 {[%emt 0:02:00]} (16. Nf3 $15) 16... Ne5 $17 {[%emt 0:02:30]} 17. Qe2 {[%emt 0:00:17] aiming for f4.} Nb5 $1 {[%emt 0:05:39]} 18. Nf3 {[%emt 0:12:25]} Nxf3+ {[%emt 0:32:14]} (18... Nd4 $1 $19 {[%cal Rd4e2]} 19. Nxd4 cxd4) 19. Qxf3 {[%emt 0:00:26]} Nd4 {[%emt 0:00:10]} 20. Qd3 {[%emt 0:02:26]} Qb6 {[%emt 0:00:46]} 21. Rb1 {[%emt 0:06:15]} Qb3 {[%emt 0:01:26]} 22. Rd1 {[%emt 0:04:11]} Rfc8 {[%emt 0:13:23]} (22... Bb5 $142 23. Nxb5 Qxd3 (23... Qxb5 24. Bg5 $17) (23... Rxb5 $2 24. Bf1 $17) 24. Rxd3 Ne2+ (24... Rxb5 25. Bf1 $17) (24... Nxb5 25. Rb3 $17) 25. Kh2 Nxc1 (25... Rxb5 26. Bg5 $15) 26. Rxc1 Bxb2 (26... Rxb5 $2 27. b3 $19) 27. Nxd6 Bxc1) 23. Bf4 {[%emt 0:07:15]} Rb4 {[%emt 0:02:54]} 24. Kh1 {[%emt 0:07:01]} (24. Qe3 $142) 24... Rcb8 {[%emt 0:00:20]} 25. Rd2 {[%emt 0:02:08]} h5 {[%emt 0:08:19]} 26. Ra1 {[%emt 0:01:32]} (26. Re1 $17) 26... c4 {[%emt 0:00:56]} (26... Bb5 $1 $19 {[%cal Rb5d3] has better winning chances.} 27. Qb1 Nf3) 27. Qf1 {[%emt 0:00:23]} Nb5 {[%emt 0:05:57] Wards off Ra3} 28. Nxb5 {[%emt 0:03:01]} (28. Nd1 $1 $15) 28... R4xb5 {[%emt 0:01:57]} (28... R8xb5 $2 29. Ra3 $18) (28... Bxb5 $17 29. Ra3 c3 30. Rxb3 Bxf1 31. Rxb4 Bxg2+ (31... Rxb4 32. bxc3 Bxg2+ 33. Kxg2 $15) 32. Kxg2 Rxb4 33. bxc3 Rxe4) 29. Rc1 {[%emt 0:01:56]} (29. Ra3 $1 $15 Qb4 30. Ra7) 29... Bxb2 {[%emt 0:00:44]} ({Black should try} 29... Rb4 $19 30. e5 dxe5 (30... Bxe5 31. Bxe5 dxe5 32. Kh2 $15)) 30. Rxc4 $15 {[%emt 0:00:19]} R5b7 {[%emt 0:02:28]} 31. Rdc2 $1 {[%emt 0:01:20]} Bf6 {[%emt 0:01:13]} 32. Qc1 {[%emt 0:00:46]} Kg7 {[%emt 0:01:59]} 33. Kh2 {[%emt 0:00:37]} Qb6 {[%emt 0:01:21]} (33... Bb5 {looks sharper.} 34. Bh6+ Kh7 35. Rc8 Rxc8 36. Rxc8 Qb2) 34. Be3 {[%emt 0:00:42]} Qa5 {[%emt 0:00:21]} 35. Qd1 {[%emt 0:00:43] [#]} (35. Bd2 $11 Qa6 36. Rc7) 35... Qd8 {[%emt 0:01:01]} (35... Bb5 $1 $17 {[%cal Rb5c4]} 36. Rd4 Qd8) 36. f4 {[%emt 0:00:53] [#]} (36. Qd2 $11) 36... Bb5 $1 $17 {[%emt 0:00:17]} 37. e5 {[%emt 0:00:36]} dxe5 {[%emt 0:00:24]} 38. fxe5 {[%emt 0:00:03]} Bxe5 {[%emt 0:00:10]} 39. Re4 {[%emt 0:00:05]} Bf6 {[%emt 0:00:42]} 40. Bf4 {[%emt 0:00:00]} Rc8 {[%emt 0:00:00]} (40... Bd7 $142 {[%cal Od7f5] White must now prevent ...Bf5!.} 41. Bxb8 Qxb8) 41. Rf2 {[%emt 0:02:17]} 1/2-1/2

[Event "Azerbaijan-ch 1st League 2025"]
[Site "Baku"]
[Date "2025.01.07"]
[Round "2.18"]
[White "Baghirov, Orkhan"]
[Black "Imranli, Kenan"]
[Result "1-0"]
[Annotator "TA"]
[ECO "E18"]
[WhiteElo "1989"]
[BlackElo "1758"]
[PlyCount "69"]
[EventDate "2025.01.05"]
[EventType "swiss"]
[EventCountry "AZE"]
[SourceTitle "playchess.com"]
[Source "ChessBase"]
[SourceQuality "1"]
[TimeControl "40/5400+30:1800+30"]

{[%evp 16,69,18,11,45,10,0,2,28,19,51,43,30,14,90,37,88,63,228,218,226,197,202,185,210,224,247,251,318,319,343,346,354,350,327,289,295,294,309,295,297,274,263,260,403,412,568,575,649,647,636,654,650,645,1097,1089]} 1. d4 {[%emt 0:00:11]} d5 {[%emt 0:00:06]} 2. c4 {[%emt 0:00:27]} e6 {[%emt 0:00:06]} 3. Nf3 {[%emt 0:00:04]} Nf6 {[%emt 0:00:15]} 4. g3 {[%emt 0:00:02]} Be7 {[%emt 0:00:40]} 5. Bg2 {[%emt 0:00:02]} O-O {[%emt 0:00:09]} 6. O-O {[%emt 0:00:04]} b6 {[%emt 0:01:18]} 7. cxd5 {[%emt 0:00:13]} exd5 {[%emt 0:00:24]} 8. Nc3 {[%emt 0:00:07]} Bb7 {[%emt 0:00:18]} 9. Bf4 {[%emt 0:00:04]} Bd6 {[%emt 0:03:46]} 10. Rc1 {[%emt 0:01:56]} Bxf4 {[%emt 0:01:48]} 11. gxf4 {[%emt 0:00:04]} Re8 {[%emt 0:06:59]} 12. Ne5 {[%emt 0:04:20]} a6 {[%emt 0:05:01]} 13. Qb3 {[%emt 0:00:36][%cal Oe2e4]} Nc6 {[%emt 0:20:45]} 14. Rfd1 {[%emt 0:07:50][%cal Rc3d5]} (14. Nxd5 Nxd4 15. Qd1 Nxe2+ (15... Bxd5 16. Qxd4 c5 17. Qd1 $15) 16. Qxe2 Nxd5 $17 (16... Bxd5 17. Rfd1 $16)) 14... Na5 {[%emt 0:04:21]} (14... Ne7 $11) 15. Qa4 {[%emt 0:02:15]} (15. Qc2 $16) 15... Qd6 {[%emt 0:03:02]} (15... Re6 $14) 16. Nb1 {[%emt 0:12:29] White is much more active.} Nc6 $2 {[%emt 0:13:28]} 17. Nxc6 $18 {[%emt 0:03:59]} (17. Rxc6 Bxc6 18. Qxc6 Qxc6 19. Nxc6 Rxe2 $16) 17... Qxf4 {[%emt 0:00:36]} 18. Qa3 {[%emt 0:08:11]} Rxe2 {[%emt 0:04:30]} (18... Bxc6 19. Rxc6 Rxe2 20. Qf3 Qxf3 21. Bxf3 Rxb2 22. Nc3 $18 (22. Rxc7 Rxa2 23. Nc3 Ra3 $18)) 19. Qg3 {[%emt 0:01:00]} Qxg3 {[%emt 0:02:03]} 20. hxg3 {[%emt 0:00:03]} Bxc6 {[%emt 0:00:59]} 21. Rxc6 {[%emt 0:00:02]} Rae8 {[%emt 0:01:20]} 22. Nd2 {[%emt 0:03:06]} Re1+ {[%emt 0:03:01]} 23. Rxe1 {[%emt 0:00:07]} Rxe1+ {[%emt 0:00:04]} 24. Bf1 {[%emt 0:00:44]} ({Don't do} 24. Nf1 Ne8 25. Bxd5 Rd1 $18) 24... Ne8 {[%emt 0:03:20]} 25. Kg2 {[%emt 0:00:41]} a5 {[%emt 0:02:17]} 26. Rc2 {[%emt 0:00:51]} Re7 {[%emt 0:04:21]} 27. Nf3 {[%emt 0:00:13]} Nd6 {[%emt 0:01:01]} 28. Bd3 {[%emt 0:00:02]} f6 {[%emt 0:00:38]} 29. Ng1 {[%emt 0:00:42] Strongly threatening Ne2.} Kf7 {[%emt 0:04:31]} (29... Nb7 $142 30. Ne2 Nd8) 30. Ne2 {[%emt 0:00:24]} ({Weaker is} 30. Bxh7 g6 31. Nh3 Kg7 32. Bxg6 Kxg6 33. Nf4+ Kf5 34. Nxd5 Re4 35. Rxc7 (35. Nxc7 Rxd4 36. Kf1 Ne4 $16) 35... Rxd4 $18) 30... Ne4 {[%emt 0:01:23]} 31. Nf4 {[%emt 0:00:20]} Ng5 {[%emt 0:03:50]} 32. Nxd5 {[%emt 0:00:25]} Rd7 {[%emt 0:00:08]} 33. Rxc7 {[%emt 0:00:06]} Rxc7 {[%emt 0:00:44]} 34. Nxc7 {[%emt 0:00:02]} g6 {[%emt 0:00:56]} 35. f4 {[%emt 0:00:01]} 1-0

[Event "Azerbaijan-ch 1st League 2025"]
[Site "Baku"]
[Date "2025.01.08"]
[Round "3.1"]
[White "Atakishiyev, Elmar"]
[Black "Hamidov, Allahverdi"]
[Result "1/2-1/2"]
[Annotator "TA"]
[ECO "E06"]
[WhiteElo "2408"]
[BlackElo "2200"]
[PlyCount "59"]
[EventDate "2025.01.05"]
[EventType "swiss"]
[EventCountry "AZE"]
[SourceTitle "playchess.com"]
[Source "ChessBase"]
[SourceQuality "1"]
[TimeControl "40/5400+30:1800+30"]

{[%evp 21,59,19,18,16,23,12,7,11,10,15,32,14,10,0,-12,0,-9,-28,-22,-16,-36,-35,-10,-10,-12,-16,-13,-18,-21,-16,-10,-9,-9,-56,-10,-13,0,-56,0,-19]} 1. d4 {[%emt 0:00:05]} d5 {[%emt 0:00:05]} 2. Nf3 {[%emt 0:00:18]} Nf6 {[%emt 0:00:10]} 3. c4 {[%emt 0:00:23]} e6 {[%emt 0:00:06]} 4. g3 {[%emt 0:00:12]} Be7 {[%emt 0:00:05]} 5. Bg2 {[%emt 0:00:20]} O-O {[%emt 0:01:39]} 6. Nc3 {[%emt 0:00:13]} dxc4 {[%emt 0:00:26]} 7. Ne5 {[%emt 0:00:16]} Nc6 {[%emt 0:00:54]} 8. Bxc6 {[%emt 0:00:36]} bxc6 {[%emt 0:00:04]} 9. Nxc6 {[%emt 0:00:05]} Qe8 {[%emt 0:00:05]} 10. Nxe7+ {[%emt 0:00:05]} Qxe7 {[%emt 0:00:04]} 11. Qa4 {[%emt 0:00:09]} c5 {[%emt 0:00:11]} 12. dxc5 {[%emt 0:00:14]} Qxc5 {[%emt 0:00:05]} 13. Be3 {[%emt 0:00:15]} Qc7 {[%emt 0:00:10]} 14. f3 {[%emt 0:00:37] Dodges Ng4. Black is weak on the dark squares} Bd7 {[%emt 0:00:08]} 15. Qa3 {[%emt 0:07:09]} Bc6 {[%emt 0:09:49]} 16. Kf2 {[%emt 0:05:26]} e5 {[%emt 0:03:06][%cal Be6e5,Be5e4,Be4f3,Bf3e2][%mdl 32]} 17. Rhd1 {[%emt 0:16:19]} e4 {[%emt 0:05:47] [#] Hoping for ...exf3.} 18. Bd4 {[%emt 0:16:49]} ({Much weaker is} 18. Qd6 Qb7 19. Bd4 Rad8 $17) 18... exf3 {[%emt 0:07:35]} 19. Bxf6 {[%emt 0:10:23]} fxe2 {[%emt 0:12:12]} 20. Rd6 {[%emt 0:01:15][%cal Oa3c5] Qc5! would now be deadly.} gxf6 {[%emt 0:02:56]} 21. Qc5 $1 {[%emt 0:00:22] [#]} Qb7 $1 {[%emt 0:10:53]} 22. Rxc6 {[%emt 0:09:32]} (22. Qxc6 $2 {too greedy.} Qxb2 23. Re1 Qxc3 $19) 22... Qxb2 {[%emt 0:00:20]} 23. Re1 {[%emt 0:00:19] Some like it hot} Qxc3 {[%emt 0:00:10]} 24. Qxc4 {[%emt 0:00:57]} Qxc4 {[%emt 0:00:13]} 25. Rxc4 $11 {[%emt 0:00:05] KRR-KRR} Rfe8 {[%emt 0:02:24]} 26. Rg4+ {[%emt 0:01:15]} Kh8 {[%emt 0:00:11]} 27. Rf4 {[%emt 0:00:06]} (27. Rxe2 $11 Rxe2+ 28. Kxe2) 27... Kg7 {[%emt 0:00:04]} (27... Rac8 $15 {is superior.}) 28. Rg4+ {[%emt 0:00:04]} Kh8 {[%emt 0:00:10]} 29. Rf4 {[%emt 0:00:01]} Kg7 {[%emt 0:00:28]} 30. Rg4+ {[%emt 0:00:04] A rather calm draw.   Weighted Error Value: White=0.07 (flawless) /Black=0.12 (very precise) .  Mistake:       	White=1     	Black=1      Inaccurate:     	---       	Black=1      OK:         	White=8     	Black=5      Best:        	White=2     	Black=2      Strong:       	White=1     	---} 1/2-1/2

[Event "Azerbaijan-ch 1st League 2025"]
[Site "Baku"]
[Date "2025.01.08"]
[Round "3.2"]
[White "Abdulkarimli, Eljan"]
[Black "Aslanov, Umid"]
[Result "1/2-1/2"]
[Annotator "TA"]
[ECO "B22"]
[WhiteElo "2163"]
[BlackElo "2250"]
[PlyCount "80"]
[EventDate "2025.01.05"]
[EventType "swiss"]
[EventCountry "AZE"]
[SourceTitle "playchess.com"]
[Source "ChessBase"]
[SourceQuality "1"]
[TimeControl "40/5400+30:1800+30"]

{[%evp 27,80,0,0,0,0,0,8,-6,-10,-10,-10,-6,50,50,54,-40,-39,-37,-40,-56,-60,-76,-28,-66,-66,-55,-64,-66,-67,-71,-68,-75,-43,-42,-39,-41,-16,-37,-39,-42,-27,-62,-64,-65,-63,-61,0,0,0,0,0,0,0,0,0]} 1. e4 {[%emt 0:00:52]} c5 {[%emt 0:00:05]} 2. c3 {[%emt 0:00:33]} d5 {[%emt 0:00:08]} 3. exd5 {[%emt 0:00:43]} Qxd5 {[%emt 0:00:05]} 4. d4 {[%emt 0:00:12]} cxd4 {[%emt 0:00:05]} 5. cxd4 {[%emt 0:00:54]} Nc6 {[%emt 0:00:03]} 6. Nf3 {[%emt 0:01:37]} e5 {[%emt 0:02:23]} 7. Nc3 {[%emt 0:05:10]} Bb4 {[%emt 0:00:05]} 8. Bd2 {[%emt 0:01:35]} Bxc3 {[%emt 0:00:05]} 9. Bxc3 {[%emt 0:01:35]} e4 {[%emt 0:00:04]} 10. Ne5 {[%emt 0:02:34]} Nxe5 {[%emt 0:00:07]} 11. dxe5 {[%emt 0:00:11]} Ne7 {[%emt 0:00:04]} 12. Qa4+ {[%emt 0:09:28]} Bd7 {[%emt 0:00:05]} 13. Qa3 {[%emt 0:05:08]} Qe6 {[%emt 0:00:05]} 14. Rd1 {[%emt 0:08:24]} O-O {[%emt 0:00:46][%cal Oe4e3]} 15. Be2 {[%emt 0:09:51] Black must now prevent Rd6.} Bc6 {[%emt 0:09:17]} 16. Qd6 {[%emt 0:10:06]} e3 {[%emt 0:17:51]} 17. O-O {[%emt 0:10:31]} Nd5 {[%emt 0:07:32] Hoping for ...Nf4.} 18. Qxe6 {[%emt 0:06:10]} fxe6 {[%emt 0:00:27]} 19. Bc4 {[%emt 0:03:15] [#]} e2 {[%emt 0:10:21]} 20. Bxe2 $14 {[%emt 0:01:18]} Nf4 {[%emt 0:00:03][%csl LRe2,LRg2]} 21. Bf3 {[%emt 0:03:22] [#]} (21. Bc4 $1 $14) 21... Nh3+ $1 $15 {[%emt 0:00:27]} 22. gxh3 {[%emt 0:00:16]} Rxf3 {[%emt 0:00:11]} 23. Bb4 {[%emt 0:03:55]} a5 {[%emt 0:02:33]} 24. Bd6 {[%emt 0:01:08]} a4 {[%emt 0:00:44]} (24... Bd5 $17 25. h4 h6 (25... Bxa2 26. Kg2 $17)) 25. Rfe1 {[%emt 0:02:30]} Rxh3 {[%emt 0:01:03]} 26. Re3 {[%emt 0:01:56]} Rh4 {[%emt 0:02:52]} 27. Rg3 {[%emt 0:01:15]} Rc4 {[%emt 0:01:34]} 28. Rc3 {[%emt 0:01:59]} Rf4 {[%emt 0:01:54]} 29. a3 {[%emt 0:01:18]} Rf5 {[%emt 0:02:31]} 30. Rd4 {[%emt 0:02:09]} Ra5 {[%emt 0:02:14]} 31. f4 {[%emt 0:00:39]} Rd5 {[%emt 0:04:16]} 32. Rcc4 {[%emt 0:03:11]} Rxd4 {[%emt 0:01:36]} 33. Rxd4 {[%emt 0:00:01][%mdl 4096] Endgame. KRB-KRB} g5 {[%emt 0:00:12]} 34. Be7 {[%emt 0:03:08]} gxf4 {[%emt 0:01:48][%cal Of4f3]} ({Don't do} 34... Rxf4 35. Rxf4 gxf4 36. Bg5 $17) 35. Bf6 {[%emt 0:00:08]} Kf7 {[%emt 0:00:34]} 36. Kf2 {[%emt 0:00:47]} Rxf6 {[%emt 0:00:58]} (36... Kg6 $15 37. h3 b5) 37. exf6 $11 {[%emt 0:00:02] The position is equal.} e5 {[%emt 0:00:04]} 38. Rd6 {[%emt 0:00:33]} e4 {[%emt 0:00:04]} 39. h4 {[%emt 0:01:03]} Bb5 {[%emt 0:07:42]} 40. Rd4 {[%emt 0:00:00]} Bc6 {[%emt 0:00:00] Weighted Error Value: White=0.12 (very precise) /Black=0.12 (very precise) .  Mistake:       	White=1     	Black=3      Inaccurate:     	White=2     	Black=1      OK:         	White=11    	Black=14     Best:        	White=2     	---} 1/2-1/2

[Event "Azerbaijan-ch 1st League 2025"]
[Site "Baku"]
[Date "2025.01.08"]
[Round "3.3"]
[White "Musayev, Eldar"]
[Black "Ahmadov, Fariz"]
[Result "0-1"]
[Annotator "TA"]
[ECO "C50"]
[WhiteElo "2163"]
[BlackElo "2224"]
[PlyCount "68"]
[EventDate "2025.01.05"]
[EventType "swiss"]
[EventCountry "AZE"]
[SourceTitle "playchess.com"]
[Source "ChessBase"]
[SourceQuality "1"]
[TimeControl "40/5400+30:1800+30"]

{[%evp 11,68,18,35,22,25,12,10,14,32,-16,-10,-29,20,7,40,-34,-33,-59,-62,-101,-92,-119,-125,-125,-72,-116,-81,-85,-109,-61,-10,-145,-159,-113,-110,-410,-385,-347,-244,-209,-216,-226,-222,-220,-229,-216,-200,-166,-97,-80,-22,-176,-168,-164,-157,-446,-225,-721,-717]} 1. e4 {[%emt 0:00:26]} e5 {[%emt 0:02:13]} 2. Nf3 {[%emt 0:00:57]} Nc6 {[%emt 0:00:13]} 3. Bc4 {[%emt 0:02:06]} Be7 {[%emt 0:00:43]} 4. d4 {[%emt 0:07:04]} d6 {[%emt 0:00:31]} 5. h3 {[%emt 0:08:21]} Nf6 {[%emt 0:04:58]} 6. Nc3 {[%emt 0:02:05]} O-O {[%emt 0:01:29][%cal Of6e4]} 7. d5 {[%emt 0:15:47]} Nb8 {[%emt 0:01:42]} 8. Qe2 {[%emt 0:07:39]} c6 {[%emt 0:01:16]} 9. a4 {[%emt 0:01:20]} Nbd7 {[%emt 0:02:52]} 10. dxc6 {[%emt 0:06:07]} (10. a5 $14) 10... bxc6 $11 {[%emt 0:00:22]} 11. O-O {[%emt 0:01:11]} Nc5 {[%emt 0:01:29]} (11... a5 $142) 12. Rd1 {[%emt 0:00:48] Nxe5 poses a challenge} (12. b4 $5 Ne6 13. Rd1 $14) 12... Qc7 {[%emt 0:00:27]} 13. Bg5 {[%emt 0:12:58]} (13. b4 $14 Ne6 14. Be3) 13... a5 $15 {[%emt 0:03:05]} 14. Rd2 {[%emt 0:03:52]} h6 {[%emt 0:08:38]} 15. Bxf6 {[%emt 0:05:07]} Bxf6 {[%emt 0:00:11]} 16. Qe3 {[%emt 0:02:39]} Be7 {[%emt 0:02:20]} 17. b3 {[%emt 0:01:32]} Kh8 {[%emt 0:02:24]} (17... Kh7 $142 18. Re1 f5) 18. g4 {[%emt 0:05:49]} Qa7 {[%emt 0:06:39]} 19. Ne2 {[%emt 0:00:42] [#]} Nxe4 $1 {[%emt 0:01:02]} 20. Qxe4 {[%emt 0:00:19][%cal Oc4d3]} d5 {[%emt 0:01:49]} (20... f5 $1 $15 21. Qxc6 fxg4 (21... Bb7 22. Qd7 $15)) 21. Rxd5 {[%emt 0:01:03]} cxd5 $17 {[%emt 0:01:35]} 22. Bxd5 {[%emt 0:00:20]} f5 {[%emt 0:01:51]} 23. Qxe5 $2 {[%emt 0:01:52][%mdl 8192] [#]} (23. Qe3 $17 Qxe3 24. fxe3) 23... Bf6 $1 $19 {[%emt 0:05:06]} 24. Nf4 {[%emt 0:00:04]} Kh7 {[%emt 0:00:27] Against Ng6} (24... fxg4 25. Ng6+ Kh7 26. Nxf8+ Kh8 27. Ng6+ (27. Qe4 g5 $18) 27... Kh7 28. Qe4 (28. Qe8 Be6 $18)) 25. Qe1 {[%emt 0:11:58]} Bxa1 {[%emt 0:00:34]} 26. Qxa1 {[%emt 0:00:29]} Bb7 {[%emt 0:01:16]} 27. g5 {[%emt 0:00:18]} Bxd5 {[%emt 0:00:37]} 28. Nxd5 {[%emt 0:00:53]} Rad8 {[%emt 0:01:16]} 29. c4 {[%emt 0:00:05] [#]} Rxd5 {[%emt 0:05:00]} 30. cxd5 $17 {[%emt 0:00:02]} Qe7 {[%emt 0:00:06]} ({Black should play} 30... Qd7 $17 31. Qd4 Rd8) 31. h4 $2 {[%emt 0:01:13]} (31. Qc3 $11 {and White has nothing to worry.}) 31... Qe4 $36 {[%emt 0:00:53][%mdl 2048] Black is really pushing.} 32. Qd1 {[%emt 0:00:39]} Rd8 {[%emt 0:00:38]} 33. gxh6 $2 {[%emt 0:00:12]} (33. d6 $17) 33... Qg4+ {[%emt 0:02:17]} ({Inferior is} 33... gxh6 34. Ng5+ hxg5 35. Qh5+ Kg8 36. Qxg5+ (36. hxg5 $2 {perishes.} Qg4+ 37. Qxg4 fxg4 $19) 36... Kh7 37. Qxd8 $11) (33... Kxh6 34. d6 Qg4+ 35. Kf1 $15) (33... Qxd5 34. Qxd5 Rxd5 35. hxg7 $19) (33... Rxd5 $142 34. Ng5+ Kxh6) 34. Kh2 $2 {[%emt 0:00:44]} (34. Kf1 gxh6 35. Qd3) 34... gxh6 {[%emt 0:00:32]} 0-1